bitfinex-derivatives/quotes_ETHF0:USTF0_20250427
["timestamp","ask_amount","ask_price","bid_price","bid_amount"]
[1745720051732,2.137,1815.5,1815.4,7.88462]
[1745720051927,3.2078,1815.6,1815.4,6.7834]
[1745720052135,8.63625027,1815.8,1815.6,1.10108]
[1745720052435,8.63625027,1815.8,1815.7,4.1155]
[1745720052737,8.63625027,1815.8,1815.7,5.21654]
[1745720053140,9.15045027,1815.8,1815.7,5.21654]
[1745720053437,9.15045027,1815.8,1815.7,8.42434]
[1745720053636,9.15045027,1815.8,1815.7,4.1155]
[1745720053637,3.722,1815.8,1815.7,4.1155]
[1745720056841,3.722,1815.8,1815.7,8.42434]
[1745720057041,3.722,1815.8,1815.7,7.3233]
[1745720057242,2.2436,1815.9,1815.7,5.2435]
[1745720057541,5.3287,1815.8,1815.6,4.537]
[1745720057741,2.2441,1815.7,1815.6,4.537]
[1745720058042,2.69144319,1815.7,1815.6,4.537]
[1745720058241,6.41344319,1815.7,1815.6,4.537]
[1745720060338,6.41344319,1815.7,1815.5,61.809]
[1745720060640,3.722,1815.7,1815.6,4.537]
[1745720061032,4.16936797,1815.7,1815.6,4.537]
[1745720062647,4.16936797,1815.7,1815.6,5.6381]
[1745720062942,4.16936797,1815.7,1815.6,6.6089]
[1745720065252,4.16936797,1815.7,1815.6,4.537]
[1745720065440,6.28806797,1815.7,1815.6,4.537]
[1745720067747,4.16936797,1815.7,1815.6,4.537]
[1745720073249,4.16936797,1815.7,1815.6,5.6381]
[1745720073544,4.16936797,1815.7,1815.6,12.7737]
[1745720073740,3.722,1815.7,1815.6,12.7737]
[1745720074143,5.42845027,1816.0,1815.9,1.10091]
[1745720074651,5.42845027,1816.0,1815.8,1.10094]
[1745720074852,5.42845027,1816.0,1815.9,2.0195]
[1745720075249,9.15045027,1816.0,1815.9,4.1551]
[1745720075750,9.15045027,1816.0,1815.9,5.25601]
[1745720075952,9.15045027,1816.0,1815.9,8.46381]
[1745720076344,5.42845027,1816.0,1815.9,8.46381]
[1745720077760,3.2078,1816.4,1815.9,8.46381]
[1745720077761,5.4298118,1816.4,1816.3,1.10067]
[1745720077941,5.4298118,1816.4,1816.3,5.62167]
[1745720078445,5.4298118,1816.4,1816.3,9.79267]
[1745720078746,5.4298118,1816.4,1816.3,11.83787]
[1745720079250,5.4298118,1816.4,1816.3,10.7372]
[1745720079652,5.4298118,1816.4,1816.3,11.83787]
[1745720080048,5.4298118,1816.4,1816.3,8.6854]
[1745720080246,9.1518118,1816.4,1816.3,8.6854]
[1745720080853,9.1518118,1816.4,1816.3,11.84157]
[1745720081355,3.722,1816.4,1816.3,11.84157]
[1745720081854,3.722,1816.4,1816.3,12.25916548]
[1745720082150,3.2078,1816.9,1816.5,1.10054]
[1745720082456,2.61947964,1816.8,1816.6,1.9963]
[1745720082650,2.1733,1816.7,1816.6,1.9963]
[1745720082849,2.1733,1816.7,1816.6,6.5163]
[1745720083348,5.8953,1816.7,1816.6,6.5163]
[1745720085649,5.8953,1816.7,1816.6,8.5127]
[1745720087760,5.8953,1816.7,1816.6,9.61319]
[1745720088158,5.8953,1816.7,1816.6,8.5127]
[1745720088562,5.8953,1816.7,1816.6,6.5163]
[1745720088759,5.8953,1816.7,1816.6,4.52]
[1745720089153,7.9956,1816.7,1816.6,4.52]
[1745720089863,3.722,1816.7,1816.6,15.83049]
[1745720090354,2.0356,1817.1,1816.8,1.10032]
[1745720090556,2.0356,1817.1,1816.9,2.155]
[1745720090755,5.2434,1817.1,1817.0,4.519]
[1745720091258,8.9654,1817.1,1817.0,4.519]
[1745720091659,8.9654,1817.1,1816.7,2.0911]
[1745720091852,6.9298,1817.1,1817.0,4.519]
[1745720092052,6.9298,1817.1,1816.9,4.519]
[1745720093258,6.9298,1817.1,1816.7,1.10042]
[1745720093458,6.9298,1817.1,1816.9,4.519]
[1745720094258,1.3007,1817.0,1816.4,3.2078]
[1745720094455,3.2078,1816.7,1816.3,4.519]
[1745720094756,3.2078,1816.7,1816.3,5.61966]
[1745720094955,3.2078,1816.7,1816.3,4.519]
[1745720095261,3.722,1816.7,1816.5,1.1005]
[1745720095661,6.9298,1816.7,1816.5,1.1005]
[1745720096257,6.9298,1816.7,1816.4,5.22497]
[1745720096558,6.9298,1816.7,1816.4,4.1244]
[1745720096856,6.9298,1816.7,1816.3,5.61965]
[1745720097257,6.9298,1816.7,1816.3,5.61963]
[1745720097447,6.9298,1816.7,1816.3,4.519]
[1745720097650,6.9298,1816.7,1816.3,7.70273]
[1745720099060,6.9298,1816.7,1816.3,7.70274]
[1745720099247,6.9298,1816.7,1816.3,6.6021]
[1745720099450,6.9298,1816.7,1816.3,4.519]
[1745720099862,6.9298,1816.7,1816.3,5.61967]
[1745720100062,6.9298,1816.7,1816.3,4.519]
[1745720100360,6.9298,1816.7,1816.4,1.10057]
[1745720100562,6.9298,1816.7,1816.4,3.05997]
[1745720101060,6.9298,1816.7,1816.4,1.9594]
[1745720101758,3.722,1816.7,1816.5,3.22653]
[1745720101958,3.722,1816.7,1816.6,4.30829]
[1745720102159,0.00527402,1817.0,1816.7,1.10042]
[1745720102363,0.00527402,1817.0,1816.8,4.504]
[1745720103056,3.72727402,1817.0,1816.8,4.504]
[1745720103668,3.72727402,1817.0,1816.8,6.4547]
[1745720104262,3.72727402,1817.0,1816.8,7.55505]
[1745720104463,3.72727402,1817.0,1816.8,6.4547]
[1745720105067,3.72727402,1817.0,1816.8,7.55506]
[1745720105865,3.72727402,1817.0,1816.9,1.10031]
[1745720106065,6.31247206,1817.0,1816.8,7.55504]
[1745720106260,2.1435,1816.9,1816.8,6.4547]
[1745720107267,5.8655,1816.9,1816.8,6.4547]
[1745720107766,5.8655,1816.9,1816.8,7.55507]
[1745720109064,5.8655,1816.9,1816.8,6.4547]
[1745720109469,5.8655,1816.9,1816.8,7.55507]
[1745720110469,5.8655,1816.9,1816.8,6.4547]
[1745720110670,5.8655,1816.9,1816.8,7.55507]
[1745720111172,5.8655,1816.9,1816.8,6.4547]
[1745720111666,5.8655,1816.9,1816.8,7.55507]
[1745720112059,3.722,1816.9,1816.8,7.55507]
[1745720112259,3.722,1816.9,1816.8,15.76287]
[1745720113272,0.00527402,1817.0,1816.9,1.10031]
[1745720113461,0.00527402,1817.0,1816.9,3.14551]
[1745720114368,0.00527402,1817.0,1816.9,8.14551]
[1745720115066,0.00527402,1817.0,1816.9,3.14551]
[1745720115566,2.01047402,1817.0,1816.9,3.14551]
[1745720115866,2.01047402,1817.0,1816.8,71.4235]
[1745720116060,2.01047402,1817.0,1816.8,66.265]
[1745720116261,8.94027402,1817.0,1816.8,66.265]
[1745720116767,2.1206,1816.9,1816.8,66.265]
[1745720117370,7.1206,1816.9,1816.5,4.30831]
[1745720117569,2.1206,1816.9,1816.6,4.503]
[1745720117867,2.1206,1816.8,1816.6,4.503]
[1745720118569,2.0717,1816.7,1816.6,4.503]
[1745720119063,5.7937,1816.7,1816.6,4.503]
[1745720120165,8.23444429,1816.7,1816.6,4.503]
[1745720120363,10.23594429,1816.7,1816.6,4.503]
[1745720123273,16.53664429,1816.7,1816.1,3.2078]
[1745720123474,3.2078,1816.4,1816.0,5.60384]
[1745720123768,6.67274429,1816.3,1816.0,4.503]
[1745720123973,2.0571,1816.2,1816.0,4.503]
[1745720124371,10.2649,1816.2,1815.9,0.0087]
[1745720124562,3.2078,1816.0,1815.9,0.0087]
[1745720124770,2.0571,1816.1,1815.9,1.10956]
[1745720125071,2.0571,1816.1,1816.0,1.10085]
[1745720125276,3.722,1816.1,1816.0,4.30865]
[1745720125572,3.722,1816.1,1816.0,1.10085]
[1745720126075,3.722,1816.1,1815.9,2.0267]
[1745720126260,2.1592,1816.0,1815.9,3.12761]
[1745720126465,2.1592,1816.0,1815.9,0.0087]
[1745720126665,4.1676,1816.0,1815.9,4.5127]
[1745720127177,7.8896,1816.0,1815.9,4.5127]
[1745720127674,5.8812,1816.0,1815.9,4.5127]
[1745720127877,5.8812,1816.0,1815.9,7.61251]
[1745720128069,3.722,1816.0,1815.9,6.5116]
[1745720128469,3.722,1816.0,1815.9,4.5127]
[1745720132580,6.9298,1816.0,1815.9,4.5127]
[1745720136378,3.722,1816.0,1815.9,4.5127]
[1745720136577,6.9298,1816.0,1815.9,4.5127]
[1745720139582,11.9298,1816.0,1815.6,7.4889]
[1745720139780,11.9298,1816.0,1815.7,4.49]
[1745720139781,6.1397,1815.9,1815.7,4.49]
[1745720139979,2.0744,1815.8,1815.7,4.49]
[1745720140181,5.7964,1815.8,1815.7,4.49]
[1745720141891,5.7964,1815.8,1815.7,5.59104]
[1745720142078,3.722,1815.8,1815.7,9.77824]
[1745720143581,3.722,1815.8,1815.7,8.6772]
[1745720144984,5.8353,1815.8,1815.7,8.6772]
[1745720145791,5.8353,1815.8,1815.7,6.6125]
[1745720146294,5.8353,1815.8,1815.7,4.49]
[1745720147295,7.8708,1815.8,1815.7,4.49]
[1745720148193,5.8353,1815.8,1815.7,4.49]
[1745720149389,3.71330001,1815.8,1815.7,10.59104]
[1745720149701,2.0397,1816.4,1816.2,1.10069]
[1745720149889,2.0397,1816.4,1816.3,6.6358]
[1745720150087,3.2078,1816.6,1816.3,6.6358]
[1745720150292,3.722,1816.4,1816.3,6.6358]
[1745720150692,3.722,1816.4,1816.3,8.69]
[1745720150989,5.7617,1816.4,1816.3,8.69]
[1745720151187,3.722,1816.4,1816.3,10.7513]
[1745720151390,3.722,1816.4,1816.3,11.85197]
[1745720151580,3.722,1816.4,1816.3,15.05977]
[1745720152493,3.722,1816.4,1816.3,11.85197]
[1745720153497,3.722,1816.4,1816.3,10.7513]
[1745720153698,5.7752,1816.4,1816.3,10.7513]
[1745720153891,5.7752,1816.4,1816.3,11.85197]
[1745720154092,5.7752,1816.4,1816.3,10.7513]
[1745720154291,5.7752,1816.4,1816.3,8.69]
[1745720154493,5.7752,1816.4,1816.3,6.6358]
[1745720156295,6.21654765,1816.4,1816.3,4.49]
[1745720157092,6.21654765,1816.4,1815.9,3.19217]
[1745720157393,7.3094,1816.3,1816.0,4.49]
[1745720157593,2.098,1816.2,1816.0,5.59082]
[1745720158185,5.82,1816.2,1816.0,5.59082]
[1745720158391,5.82,1816.2,1816.0,4.49]
[1745720158689,1.9709,1816.1,1816.0,4.49]
[1745720159099,5.6929,1816.1,1816.0,4.49]
[1745720159595,5.6929,1816.1,1815.8,4.2255]
[1745720159801,1.9709,1816.0,1815.9,4.49]
[1745720160000,1.9709,1816.0,1815.8,7.6978]
[1745720160300,1.9855,1815.9,1815.8,7.6978]
[1745720160695,3.9564,1815.9,1815.8,7.6978]
[1745720161098,7.6784,1815.9,1815.8,7.6978]
[1745720161299,7.6784,1815.9,1815.8,8.79878]
[1745720161501,7.6784,1815.9,1815.8,7.6978]
[1745720161804,8.14924135,1815.9,1815.8,7.6978]
[1745720162203,6.16374135,1815.9,1815.8,7.6978]
[1745720162404,6.16374135,1815.9,1815.8,11.9046]
[1745720162602,6.16374135,1815.9,1815.8,9.7324]
[1745720165101,6.16374135,1815.9,1815.8,7.6978]
[1745720165306,6.16374135,1815.9,1815.8,3.2078]
[1745720165603,6.16374135,1815.9,1815.7,4.475]
[1745720165807,4.1488,1815.8,1815.7,4.475]
[1745720166102,8.34164135,1815.8,1815.7,4.475]
[1745720166300,8.34164135,1815.8,1815.6,7.6838]
[1745720166506,4.59774135,1815.7,1815.6,3.2078]
[1745720166708,4.59774135,1815.7,1815.6,7.6838]
[1745720167104,8.31974135,1815.7,1815.6,7.6838]
[1745720167599,6.25854135,1815.7,1815.6,8.7849]
[1745720167805,6.25854135,1815.7,1815.6,10.758]
[1745720168204,5.7877,1815.7,1815.6,10.758]
[1745720169002,5.7877,1815.7,1815.6,9.6569]
[1745720169208,5.7877,1815.7,1815.6,7.6838]
[1745720170812,5.7877,1815.7,1815.6,9.8359]
[1745720172110,5.7877,1815.7,1815.6,7.6838]
[1745720172312,5.7877,1815.7,1815.4,3.2078]
[1745720172501,4.2146,1815.6,1815.2,5.2087]
[1745720172706,4.1183,1815.5,1815.2,9.6847]
[1745720173006,2.1343,1815.4,1815.3,1.10128]
[1745720173207,2.1343,1815.4,1815.3,3.25338]
[1745720173407,2.1343,1815.4,1815.2,9.6847]
[1745720174207,5.8563,1815.4,1815.2,9.6847]
[1745720174609,5.8563,1815.4,1815.2,10.78604]
[1745720174610,2.0796,1815.3,1815.2,10.78604]
[1745720174909,2.0796,1815.3,1815.2,12.84194]
[1745720175212,5.8016,1815.3,1815.2,4.476]
[1745720175400,5.8016,1815.3,1815.1,0.02329]
[1745720175401,12.9799,1815.3,1815.1,0.02329]
[1745720175601,5.2874,1815.2,1815.1,0.02329]
[1745720176117,9.47925505,1815.2,1815.1,0.02329]
[1745720177712,14.47925505,1815.2,1815.1,0.02329]
[1745720178212,14.47925505,1815.2,1814.8,7.6838]
[1745720178411,3.2078,1815.0,1814.7,4.0391]
[1745720178609,3.2078,1815.0,1814.7,4.477]
[1745720178610,4.0385,1814.9,1814.7,4.477]
[1745720178914,3.2078,1815.0,1814.7,5.57864]
[1745720178915,2.0024,1814.8,1814.7,5.57864]
[1745720179117,5.7244,1814.8,1814.7,7.67454]
[1745720179805,5.7244,1814.8,1814.7,9.69904]
[1745720180006,5.7244,1814.8,1814.7,8.5974]
[1745720180915,5.7244,1814.8,1814.7,9.69904]
[1745720181214,3.722,1814.8,1814.7,9.69904]
[1745720182210,1.9955,1815.0,1814.8,1.10155]
[1745720182413,2.0459,1815.1,1814.9,3.9513]
[1745720182613,4.1346,1815.1,1815.0,2.0758]
[1745720183115,7.8566,1815.1,1815.0,2.0758]
[1745720183916,3.722,1815.1,1815.0,4.2415]
[1745720184215,5.8107,1815.1,1815.0,4.2415]
[1745720184415,5.8107,1815.1,1815.0,2.0758]
[1745720185410,5.8107,1815.1,1814.9,1.9877]
[1745720185609,1.9784,1815.0,1814.9,1.9877]
[1745720186011,1.9784,1815.0,1814.8,4.1331]
[1745720186218,11.0852,1815.0,1814.8,4.1331]
[1745720186615,1.9784,1814.9,1814.8,4.1331]
[1745720186918,1.9784,1814.9,1814.8,2.1493]
[1745720187115,5.7004,1814.9,1814.8,2.1493]
[1745720187315,5.7004,1814.9,1814.8,6.6273]
[1745720188611,5.7004,1814.9,1814.6,3.2078]
[1745720188813,2.5226823,1814.8,1814.6,4.478]
[1745720189013,5.2547,1814.7,1814.6,4.478]
[1745720189318,8.9767,1814.7,1814.6,4.478]
[1745720189515,9.4524823,1814.7,1814.6,4.478]
[1745720190820,9.4524823,1814.7,1814.6,5.5797]
[1745720191421,8.9767,1814.7,1814.6,7.6043]
[1745720192224,8.9767,1814.7,1814.6,6.5026]
[1745720192423,8.9767,1814.7,1814.6,7.6043]
[1745720192615,8.9767,1814.7,1814.6,4.478]
[1745720193621,9.45149468,1814.7,1814.6,4.478]
[1745720194321,9.45149468,1814.7,1814.6,5.5797]
[1745720194517,9.45149468,1814.7,1814.6,7.611]
[1745720194924,8.9767,1814.7,1814.6,7.611]
[1745720195219,8.9767,1814.7,1814.6,6.5093]
[1745720195819,8.9767,1814.7,1814.6,4.478]
[1745720196528,9.4509185,1814.7,1814.6,4.478]
[1745720196727,9.4509185,1814.7,1814.3,2.0088]
[1745720196923,4.085,1814.6,1814.4,4.464]
[1745720197228,7.807,1814.6,1814.4,7.5746]
[1745720197621,7.807,1814.6,1814.4,6.4728]
[1745720197824,2.0917,1814.5,1814.4,7.57462]
[1745720198130,5.8137,1814.5,1814.4,7.57462]
[1745720198928,5.8137,1814.5,1814.4,6.4728]
[1745720199127,2.0917,1814.5,1814.4,6.4728]
[1745720199525,2.0917,1814.5,1814.4,5.56582]
[1745720199930,2.0917,1814.5,1814.4,7.59772]
[1745720200118,5.8137,1814.5,1814.4,7.59772]
[1745720201627,3.722,1814.5,1814.4,10.80552]
[1745720201831,3.722,1814.5,1814.4,15.80552]
[1745720202429,3.2078,1814.9,1814.8,1.10158]
[1745720202730,3.68288304,1814.9,1814.8,4.465]
[1745720202928,5.44688304,1814.9,1814.8,4.465]
[1745720203132,9.16888304,1814.9,1814.8,4.465]
[1745720203818,11.27258304,1814.9,1814.8,4.465]
[1745720208840,11.27258304,1814.9,1814.8,5.56658]
[1745720209035,11.27258304,1814.9,1814.8,4.465]
[1745720218449,11.27258304,1814.9,1814.8,5.56658]
[1745720218746,11.27258304,1814.9,1814.8,4.465]
[1745720221351,11.27258304,1814.9,1814.6,4.465]
[1745720221548,4.1355,1814.8,1814.6,4.465]
[1745720221740,2.51578304,1814.7,1814.6,4.465]
[1745720222044,2.51578304,1814.7,1814.4,4.2056]
[1745720222251,1.9993,1814.6,1814.4,6.5586]
[1745720222454,0.47508304,1814.5,1814.4,8.685]
[1745720223252,4.19708304,1814.5,1814.4,8.685]
[1745720224149,4.19708304,1814.5,1814.4,4.22]
[1745720224356,13.70558304,1814.5,1814.4,4.22]
[1745720224649,8.70558304,1814.5,1814.4,4.22]
[1745720224852,13.70558304,1814.5,1814.4,2.0936]
[1745720225051,13.70558304,1814.5,1814.1,7.30239371]
[1745720225253,3.2078,1814.2,1814.0,66.269]
[1745720225551,3.2078,1814.2,1814.0,4.451]
[1745720225849,0.47508304,1814.1,1813.9,11.75339371]
[1745720226352,0.47508304,1814.0,1813.9,11.75339371]
[1745720226548,2.23878304,1814.0,1813.9,11.75339371]
[1745720227242,5.96078304,1814.0,1813.9,11.75339371]
[1745720227444,5.96078304,1814.0,1813.8,5.0477322]
[1745720227445,15.46928304,1814.0,1813.8,5.0477322]
[1745720227741,0.47508304,1813.9,1813.8,5.0477322]
[1745720228147,4.19708304,1813.9,1813.8,5.0477322]
[1745720230147,9.19708304,1813.9,1813.8,5.0477322]
[1745720230344,10.49778304,1813.9,1813.8,5.0477322]
[1745720231045,5.49778304,1813.9,1813.8,5.0477322]
[1745720231245,5.49778304,1813.9,1813.3,3.2078]
[1745720231441,3.2078,1813.8,1813.4,4.452]
[1745720232959,3.2078,1813.8,1813.4,9.452]
[1745720233345,3.2078,1813.8,1813.4,4.452]
[1745720235349,4.9715,1814.0,1813.4,4.452]
[1745720235555,4.9715,1814.0,1813.6,3.2078]
[1745720236256,0.48966851,1813.9,1813.4,7.6598]
[1745720236649,0.48966851,1813.8,1813.4,7.6598]
[1745720237153,4.21166851,1813.8,1813.4,7.6598]
[1745720237454,0.48966851,1813.7,1813.4,7.6598]
[1745720238155,3.722,1813.7,1813.4,7.6598]
[1745720239149,0.48883474,1813.6,1813.4,7.6598]
[1745720239655,3.722,1813.7,1813.4,7.6598]
[1745720239956,3.2078,1813.6,1813.4,4.452]
[1745720240156,6.9298,1813.6,1813.4,4.452]
[1745720240556,0.48869028,1813.5,1813.4,4.452]
[1745720241155,4.21069028,1813.5,1813.4,4.452]
[1745720249070,4.21069028,1813.5,1813.1,7.6608]
[1745720249964,0.48869028,1813.4,1813.1,7.6608]
[1745720250264,3.2078,1813.3,1813.1,4.453]
[1745720250461,0.48869028,1813.2,1813.1,4.453]
[1745720251368,4.21069028,1813.2,1812.9,4.454]
[1745720251663,3.2078,1813.1,1812.9,4.454]
[1745720251857,3.2078,1813.1,1812.8,4.454]
[1745720252164,6.9298,1813.1,1812.8,4.454]
[1745720252466,0.48869028,1813.0,1812.8,4.454]
[1745720253069,4.21069028,1813.0,1812.8,4.454]
[1745720253570,0.48869028,1812.9,1812.8,4.454]
[1745720254158,0.48869028,1812.9,1812.8,9.454]
[1745720254769,0.48869028,1813.0,1812.8,9.454]
[1745720255066,0.48869028,1813.0,1812.8,4.454]
[1745720255262,0.48869028,1813.0,1812.8,9.454]
[1745720255464,0.48869028,1813.0,1812.8,4.454]
[1745720258467,0.48869028,1813.6,1812.8,4.454]
[1745720258770,3.2078,1813.0,1812.8,4.454]
[1745720260468,0.49067953,1812.9,1812.8,4.454]
[1745720262079,0.49067953,1812.9,1812.8,5.5568]
[1745720262874,0.49067953,1812.9,1812.8,7.6028]
[1745720265176,0.49067953,1812.9,1812.8,9.6804]
[1745720265476,0.49067953,1812.9,1812.8,12.8882]
[1745720266175,0.49067953,1812.9,1812.8,3.2078]
[1745720266376,0.49067953,1812.9,1812.8,7.6478]
[1745720266573,0.49067953,1812.9,1812.8,4.44]
[1745720266783,2.49307953,1812.9,1812.8,4.44]
[1745720267178,6.21507953,1812.9,1812.6,4.44]
[1745720267478,4.0263,1812.8,1812.6,4.44]
[1745720267679,4.1214,1812.7,1812.6,5.54292]
[1745720267873,2.0744,1812.7,1812.6,5.54292]
[1745720268180,2.56507953,1812.7,1812.6,5.54292]
[1745720268682,3.722,1813.0,1812.9,1.10274]
[1745720269272,4.0931,1813.1,1812.9,1.10274]
[1745720269476,2.0744,1813.0,1812.9,1.10274]
[1745720269673,2.0744,1813.0,1812.9,5.54374]
[1745720270074,2.0744,1813.0,1812.9,4.441]
[1745720270275,5.7964,1813.0,1812.9,5.54374]
[1745720270475,5.7964,1813.0,1812.9,4.441]
[1745720270676,5.7964,1813.0,1812.9,5.54374]
[1745720270884,5.7964,1813.0,1812.9,4.441]
[1745720271180,5.7964,1813.0,1812.9,5.54374]
[1745720272071,5.7964,1813.0,1812.9,7.74574]
[1745720272272,5.7964,1813.0,1812.9,6.643]
[1745720272489,7.5602,1813.0,1812.9,6.643]
[1745720272887,7.5602,1813.0,1812.9,7.74574]
[1745720273078,7.5602,1813.0,1812.9,6.643]
[1745720273277,9.5734,1813.0,1812.9,6.643]
[1745720273480,9.5734,1813.0,1812.9,4.441]
[1745720274880,9.5734,1813.0,1812.9,5.54374]
[1745720275081,7.5602,1813.0,1812.9,5.54374]
[1745720276377,7.5602,1813.0,1812.9,7.60984]
[1745720276579,5.4858,1813.0,1812.9,10.81764]
[1745720277186,1.7638,1813.0,1812.9,10.81764]
[1745720279187,1.7638,1813.0,1812.9,9.7149]
[1745720279384,1.7638,1813.0,1812.9,10.81764]
[1745720279780,3.8424,1813.0,1812.9,10.81764]
[1745720280081,7.5644,1813.0,1812.9,10.81764]
[1745720280886,8.03332136,1813.0,1812.9,10.81764]
[1745720281489,8.03332136,1813.0,1812.9,9.7149]
[1745720281988,8.03332136,1813.0,1812.9,7.6488]
[1745720282488,13.03332136,1813.0,1812.9,3.95032047]
[1745720282787,13.03332136,1813.0,1812.6,4.441]
[1745720282988,4.312,1812.9,1812.6,4.441]
[1745720283288,4.198,1812.8,1812.6,4.441]
[1745720283488,2.1631,1812.7,1812.6,4.441]
[1745720283785,4.78092136,1812.7,1812.6,4.441]
[1745720285386,8.50292136,1812.7,1812.6,5.54392]
[1745720285581,4.19092136,1812.7,1812.6,5.54392]
[1745720285786,4.19092136,1812.7,1812.6,12.64222]
[1745720286085,0.46892136,1812.7,1812.6,12.64222]
[1745720287184,0.46892136,1812.9,1812.8,1.1028]
[1745720287386,2.60802136,1812.9,1812.8,1.1028]
[1745720288081,2.60802136,1812.9,1812.8,3.1632]
[1745720288278,2.60802136,1812.9,1812.8,5.3039]
[1745720288683,2.60802136,1812.9,1812.8,2.0604]
[1745720288983,4.74702136,1812.9,1812.7,4.31062]
[1745720289179,2.48762136,1812.8,1812.7,1.10286]
[1745720289482,0.46892136,1812.8,1812.7,1.10286]
[1745720289678,0.46892136,1812.8,1812.7,5.50146]
[1745720290392,0.46892136,1812.9,1812.8,1.1028]
[1745720291394,2.23242136,1812.9,1812.8,1.1028]
[1745720293290,7.20383685,1813.4,1812.8,8.2078]
[1745720293490,7.20383685,1813.4,1813.2,4.31035]
[1745720293687,7.20383685,1813.4,1813.3,1.10249]
[1745720293890,4.51485817,1813.4,1813.3,3.21439]
[1745720294689,1.7575914,1813.4,1813.3,3.21439]
[1745720294891,1.7575914,1813.4,1813.3,8.21439]
[1745720295093,2.0556,1813.9,1813.4,1.10243]
[1745720295287,6.73234476,1813.5,1813.4,4.31023]
[1745720295588,6.73234476,1813.5,1813.4,9.31023]
[1745720295783,2.0556,1813.9,1813.4,8.2078]
[1745720295992,2.0556,1813.9,1813.7,1.10219]
[1745720296193,2.0556,1813.9,1813.8,4.426]
[1745720296688,2.0556,1813.9,1813.6,4.31008]
[1745720296883,2.1657,1813.8,1813.7,5.52825]
[1745720297083,5.8877,1813.8,1813.7,5.52825]
[1745720297889,3.722,1813.8,1813.7,5.52825]
[1745720298097,2.0781,1813.9,1813.8,1.10219]
[1745720298896,9.94014476,1814.0,1813.9,1.10213]
[1745720299195,8.81044476,1814.0,1813.7,6.449]
[1745720299397,8.81044476,1814.0,1813.9,1.10213]
[1745720299797,2.0781,1814.0,1813.9,1.10213]
[1745720303012,2.0781,1814.0,1813.7,6.449]
[1745720303211,2.113,1813.9,1813.8,4.425]
[1745720303608,9.1213,1813.9,1813.3,3.2078]
[1745720303912,3.2078,1813.8,1813.6,4.425]
[1745720304215,2.1029,1813.7,1813.6,4.425]
[1745720304412,4.2568,1813.7,1813.6,4.425]
[1745720304613,9.2568,1813.7,1813.6,4.425]
[1745720305003,9.2568,1813.7,1813.3,4.425]
[1745720305208,5.3617,1813.6,1813.3,4.425]
[1745720305416,2.1539,1813.5,1813.3,4.425]
[1745720305716,4.3616,1813.5,1813.3,4.425]
[1745720306011,3.2078,1813.4,1813.1,11.04346817]
[1745720306214,3.2078,1813.2,1813.1,11.04346817]
[1745720306713,5.3617,1813.2,1813.1,11.04346817]
[1745720307102,9.0837,1813.2,1813.1,11.04346817]
[1745720307306,9.0837,1813.2,1813.0,5.52767]
[1745720307509,5.8759,1813.2,1813.0,5.52767]
[1745720309516,5.8759,1813.2,1813.0,4.425]
[1745720309716,5.8759,1813.2,1813.0,5.52766]
[1745720310809,5.8759,1813.2,1813.0,4.425]
[1745720311215,2.1095,1813.1,1813.0,4.425]
[1745720311514,2.1095,1813.1,1813.0,5.52768]
[1745720311710,2.1095,1813.1,1813.0,4.425]
[1745720312117,5.8315,1813.1,1813.0,4.425]
[1745720316522,5.8315,1813.1,1813.0,5.52768]
[1745720317023,5.8315,1813.1,1813.0,4.425]
[1745720318718,5.8315,1813.1,1813.0,5.52768]
[1745720319221,2.1095,1813.1,1813.0,5.52768]
[1745720319422,2.1095,1813.1,1813.0,12.02788]
[1745720319820,2.1095,1813.1,1813.0,4.425]
[1745720320322,5.8315,1813.1,1813.0,4.425]
[1745720321528,5.8315,1813.1,1813.0,5.52768]
[1745720322428,5.8315,1813.1,1813.0,4.425]
[1745720323120,5.8315,1813.1,1813.0,5.52768]
[1745720329242,6.28141925,1813.1,1813.0,5.52768]
[1745720330440,4.17191925,1813.1,1813.0,5.52768]
[1745720330634,4.17191925,1813.1,1813.0,10.52768]
[1745720330832,3.722,1813.1,1813.0,12.71848]
[1745720331137,2.0683,1813.7,1813.5,1.10235]
[1745720331340,2.0999,1813.8,1813.6,5.51631]
[1745720331635,2.0999,1813.8,1813.7,1.10225]
[1745720331839,2.0999,1813.8,1813.7,5.25845]
[1745720332147,6.27299261,1813.8,1813.7,5.25845]
[1745720332332,4.17309261,1813.8,1813.7,7.46605]
[1745720332636,4.17309261,1813.8,1813.7,6.3638]
[1745720332837,6.23559261,1813.8,1813.7,6.3638]
[1745720333528,6.23559261,1813.8,1813.7,7.46605]
[1745720334030,6.23559261,1813.8,1813.7,4.306]
[1745720334230,6.23559261,1813.8,1813.7,2.0984]
[1745720334735,6.23559261,1813.8,1813.7,3.20065]
[1745720335341,6.23559261,1813.8,1813.7,2.0984]
[1745720335541,6.23559261,1813.8,1813.7,7.40445]
[1745720337042,4.17309261,1813.8,1813.7,7.40445]
[1745720337341,0.45109261,1813.8,1813.7,7.40445]
[1745720338641,2.1852,1814.1,1813.8,1.10218]
[1745720338842,3.2078,1813.9,1813.8,3.24648]
[1745720339039,3.6582623,1813.9,1813.8,3.24648]
[1745720339240,7.3802623,1813.9,1813.8,2.1443]
[1745720339644,7.3802623,1813.9,1813.8,3.24649]
[1745720340139,0.4504623,1813.9,1813.8,3.24649]
[1745720340746,3.2078,1814.1,1814.0,1.10207]